[Event "Early-Titled-Tuesday-Blitz-October-10-2023"]
[Site "Chess.com"]
[Date "2023.10.10"]
[Round "7"]
[White "MikaelyanArman"]
[Black "artooon"]
[Result "1-0"]
[WhiteElo "2843"]
[BlackElo "2990"]
[TimeControl "180+1"]
[EndTime "9:17:06 PDT"]
[Termination "MikaelyanArman won by checkmate"]

1. d4 {[%clk 0:03:00.9]} 1... b6 {[%clk 0:03:00.2]} 2. e4 {[%clk 0:03:00.4]}
2... Bb7 {[%clk 0:03:01.1]} 3. Bd3 {[%clk 0:03:00.6]} 3... e6 {[%clk 0:03:02]}
4. Nf3 {[%clk 0:03:00.2]} 4... h5 {[%clk 0:03:02.9]} 5. c3 {[%clk 0:02:54.4]}
5... Nf6 {[%clk 0:03:02.8]} 6. Bg5 {[%clk 0:02:52]} 6... Be7 {[%clk 0:03:02.3]}
7. Nbd2 {[%clk 0:02:49.3]} 7... d5 {[%clk 0:03:02.1]} 8. exd5 {[%clk 0:02:41.6]}
8... Nxd5 {[%clk 0:03:00.6]} 9. Bxe7 {[%clk 0:02:31.3]} 9... Qxe7 {[%clk
0:03:01.5]} 10. O-O {[%clk 0:02:24.1]} 10... Nd7 {[%clk 0:02:59.6]} 11. Re1
{[%clk 0:02:18]} 11... O-O-O {[%clk 0:02:58.6]} 12. Qa4 {[%clk 0:02:12.9]} 12...
Kb8 {[%clk 0:02:58.2]} 13. Ba6 {[%clk 0:02:09.8]} 13... h4 {[%clk 0:02:54.9]}
14. Bxb7 {[%clk 0:01:52]} 14... Kxb7 {[%clk 0:02:55.8]} 15. c4 {[%clk
0:01:52.6]} 15... Nf4 {[%clk 0:02:55.7]} 16. d5 {[%clk 0:01:48.4]} 16... Rh6
{[%clk 0:02:46.4]} 17. c5 {[%clk 0:01:33.2]} 17... Nxc5 {[%clk 0:02:31]} 18.
Qxf4 {[%clk 0:01:31.2]} 18... Rxd5 {[%clk 0:02:30.4]} 19. Qc4 {[%clk 0:00:55.1]}
19... h3 {[%clk 0:02:27.1]} 20. g3 {[%clk 0:00:55.3]} 20... Rf6 {[%clk
0:02:23.5]} 21. Re5 {[%clk 0:00:50.3]} 21... Rd8 {[%clk 0:02:11.3]} 22. b4
{[%clk 0:00:45.4]} 22... Nd3 {[%clk 0:02:06.8]} 23. Re4 {[%clk 0:00:42.1]} 23...
Nxf2 {[%clk 0:02:05.2]} 24. Rd4 {[%clk 0:00:39.2]} 24... e5 {[%clk 0:01:50.8]}
25. Rxd8 {[%clk 0:00:36.5]} 25... Qxd8 {[%clk 0:01:51.7]} 26. Rc1 {[%clk
0:00:30.7]} 26... e4 {[%clk 0:01:49]} 27. Nxe4 {[%clk 0:00:21.8]} 27... Rxf3
{[%clk 0:01:19.1]} 28. Nxf2 {[%clk 0:00:21.6]} 28... Kb8 {[%clk 0:01:16.8]} 29.
Qe2 {[%clk 0:00:19.5]} 29... Qd5 {[%clk 0:01:12.6]} 30. Qe8+ {[%clk 0:00:16.7]}
30... Kb7 {[%clk 0:01:12.5]} 31. Qe4 {[%clk 0:00:17.3]} 31... Qxe4 {[%clk
0:01:12.2]} 32. Nxe4 {[%clk 0:00:18.2]} 32... f6 {[%clk 0:01:11.3]} 33. Rc3
{[%clk 0:00:16.2]} 33... Rf5 {[%clk 0:01:10.7]} 34. Nf2 {[%clk 0:00:12.6]} 34...
Rd5 {[%clk 0:01:10.3]} 35. Rc2 {[%clk 0:00:10.8]} 35... Rd4 {[%clk 0:01:07.5]}
36. Rb2 {[%clk 0:00:10.4]} 36... Ka6 {[%clk 0:01:06.2]} 37. a4 {[%clk
0:00:08.8]} 37... b5 {[%clk 0:01:04.8]} 38. a5 {[%clk 0:00:08.5]} 38... Rc4
{[%clk 0:01:01.9]} 39. Nxh3 {[%clk 0:00:08.4]} 39... c5 {[%clk 0:01:02.5]} 40.
bxc5 {[%clk 0:00:08.9]} 40... Rxc5 {[%clk 0:01:00.5]} 41. Nf4 {[%clk 0:00:07.4]}
41... Kxa5 {[%clk 0:01:00.7]} 42. Kf2 {[%clk 0:00:06.8]} 42... b4 {[%clk
0:00:59.5]} 43. Ke3 {[%clk 0:00:07.3]} 43... Kb5 {[%clk 0:00:59.6]} 44. Nd3
{[%clk 0:00:07.3]} 44... Rc4 {[%clk 0:00:59.8]} 45. Rf2 {[%clk 0:00:07.1]} 45...
a5 {[%clk 0:01:00.4]} 46. Rf5+ {[%clk 0:00:07.8]} 46... Kb6 {[%clk 0:00:59.9]}
47. Nb2 {[%clk 0:00:08.4]} 47... Rc2 {[%clk 0:00:57.2]} 48. Na4+ {[%clk
0:00:08.1]} 48... Ka6 {[%clk 0:00:57.9]} 49. h4 {[%clk 0:00:07.8]} 49... Ra2
{[%clk 0:00:57.5]} 50. Nc5+ {[%clk 0:00:07.9]} 50... Kb5 {[%clk 0:00:58.2]} 51.
Nb3+ {[%clk 0:00:07.2]} 51... Kb6 {[%clk 0:00:58.9]} 52. Nd4 {[%clk 0:00:06.6]}
52... Ra3+ {[%clk 0:00:59.8]} 53. Ke4 {[%clk 0:00:07.1]} 53... Rxg3 {[%clk
0:00:57.3]} 54. Rb5+ {[%clk 0:00:05.7]} 54... Ka6 {[%clk 0:00:57]} 55. Rb8
{[%clk 0:00:06.3]} 55... Rc3 {[%clk 0:00:54.4]} 56. Kd5 {[%clk 0:00:06.3]} 56...
Rc7 {[%clk 0:00:53.9]} 57. Nc6 {[%clk 0:00:06]} 57... Rb7 {[%clk 0:00:34.7]} 58.
Ra8+ {[%clk 0:00:06.3]} 58... Kb6 {[%clk 0:00:35]} 59. Nxa5 {[%clk 0:00:06.7]}
59... Rc7 {[%clk 0:00:35.1]} 60. Nc4+ {[%clk 0:00:05.8]} 60... Kb7 {[%clk
0:00:33.9]} 61. Ra4 {[%clk 0:00:06.1]} 61... Rd7+ {[%clk 0:00:31.3]} 62. Kc5
{[%clk 0:00:06.1]} 62... g5 {[%clk 0:00:27.9]} 63. h5 {[%clk 0:00:02]} 63... Rh7
{[%clk 0:00:27.3]} 64. Nd6+ {[%clk 0:00:02.1]} 64... Kb8 {[%clk 0:00:27.9]} 65.
Rxb4+ {[%clk 0:00:02.7]} 65... Ka8 {[%clk 0:00:28.1]} 66. Ra4+ {[%clk
0:00:02.9]} 66... Kb8 {[%clk 0:00:27.9]} 67. Rb4+ {[%clk 0:00:03.2]} 67... Ka8
{[%clk 0:00:27.9]} 68. Kc6 {[%clk 0:00:03.9]} 68... Rxh5 {[%clk 0:00:28.3]} 69.
Ra4+ {[%clk 0:00:03.1]} 69... Kb8 {[%clk 0:00:28.8]} 70. Rb4+ {[%clk 0:00:03.3]}
70... Ka8 {[%clk 0:00:29.5]} 71. Kc7 {[%clk 0:00:02.8]} 71... Rh7+ {[%clk
0:00:29.3]} 72. Kc6 {[%clk 0:00:03.3]} 72... Rh1 {[%clk 0:00:28.6]} 73. Nb5
{[%clk 0:00:01.9]} 73... Kb8 {[%clk 0:00:27.9]} 74. Kb6 {[%clk 0:00:02.4]} 74...
Kc8 {[%clk 0:00:27.2]} 75. Rd4 {[%clk 0:00:03.1]} 75... Rc1 {[%clk 0:00:26.2]}
76. Na7+ {[%clk 0:00:02.7]} 76... Kb8 {[%clk 0:00:26.4]} 77. Rd8+ {[%clk
0:00:03.6]} 77... Rc8 {[%clk 0:00:24.5]} 78. Rxc8# {[%clk 0:00:04.5]} 1-0

[Event "Early-Titled-Tuesday-Blitz-October-10-2023"]
[Site "Chess.com"]
[Date "2023.10.10"]
[Round "7"]
[White "santosalberto1987"]
[Black "invisible_s0ul"]
[Result "0-1"]
[WhiteElo "2460"]
[BlackElo "2313"]
[TimeControl "180+1"]
[EndTime "9:17:08 PDT"]
[Termination "invisible_s0ul won by resignation"]

1. e4 {[%clk 0:02:50.9]} 1... b6 {[%clk 0:02:49.3]} 2. d4 {[%clk 0:02:50.5]}
2... Bb7 {[%clk 0:02:50.2]} 3. Bd3 {[%clk 0:02:50.6]} 3... g6 {[%clk 0:02:50.6]}
4. Nf3 {[%clk 0:02:49.7]} 4... Bg7 {[%clk 0:02:51.3]} 5. h4 {[%clk 0:02:50]}
5... h5 {[%clk 0:02:50.2]} 6. Qe2 {[%clk 0:02:47.6]} 6... d6 {[%clk 0:02:49.4]}
7. Nc3 {[%clk 0:02:45]} 7... c5 {[%clk 0:02:48.2]} 8. Be3 {[%clk 0:02:42.7]}
8... cxd4 {[%clk 0:02:46.6]} 9. Nxd4 {[%clk 0:02:42.6]} 9... Nf6 {[%clk
0:02:38.8]} 10. f3 {[%clk 0:02:41.6]} 10... Nbd7 {[%clk 0:02:32.5]} 11. O-O-O
{[%clk 0:02:41]} 11... a6 {[%clk 0:02:26.6]} 12. Bc4 {[%clk 0:02:39.2]} 12... b5
{[%clk 0:02:24.8]} 13. Bb3 {[%clk 0:02:39.3]} 13... Rc8 {[%clk 0:02:16.5]} 14.
Kb1 {[%clk 0:02:38.7]} 14... Nb6 {[%clk 0:02:13.3]} 15. e5 {[%clk 0:02:34.6]}
15... Nfd5 {[%clk 0:01:54.5]} 16. Nxd5 {[%clk 0:02:29.8]} 16... Bxd5 {[%clk
0:01:43]} 17. exd6 {[%clk 0:02:19.5]} 17... Qxd6 {[%clk 0:01:37.8]} 18. Nxb5
{[%clk 0:02:18.2]} 18... Qe5 {[%clk 0:01:16.9]} 19. Nd4 {[%clk 0:01:56.2]} 19...
Bc4 {[%clk 0:01:04.3]} 20. Qd2 {[%clk 0:01:49]} 20... Rd8 {[%clk 0:00:45.4]} 21.
Rhe1 {[%clk 0:01:45]} 21... O-O {[%clk 0:00:45.1]} 22. Qb4 {[%clk 0:01:34.4]}
22... Nd5 {[%clk 0:00:33.9]} 23. Qxc4 {[%clk 0:00:25]} 23... Nxe3 {[%clk
0:00:33.5]} 24. Qd3 {[%clk 0:00:22.3]} 24... Rxd4 {[%clk 0:00:27.4]} 25. Qxd4
{[%clk 0:00:21.5]} 25... Qxd4 {[%clk 0:00:28.1]} 26. Rxd4 {[%clk 0:00:22.1]}
26... Bxd4 {[%clk 0:00:28.5]} 27. c3 {[%clk 0:00:22.2]} 27... Bb6 {[%clk
0:00:27.4]} 28. Re2 {[%clk 0:00:20.8]} 28... Rd8 {[%clk 0:00:26.4]} 29. a4
{[%clk 0:00:20.7]} 29... e6 {[%clk 0:00:19.4]} 30. Ka2 {[%clk 0:00:19.6]} 30...
Nf5 {[%clk 0:00:19]} 31. Bc4 {[%clk 0:00:19.5]} 31... Nxh4 {[%clk 0:00:15.2]}
32. Bxa6 {[%clk 0:00:19.5]} 32... Ra8 {[%clk 0:00:14.3]} 33. Bb5 {[%clk
0:00:19.3]} 33... Nf5 {[%clk 0:00:14.4]} 34. b4 {[%clk 0:00:19.1]} 34... Nd6
{[%clk 0:00:14.4]} 35. Bc6 {[%clk 0:00:16.7]} 35... Rc8 {[%clk 0:00:12.2]} 36.
b5 {[%clk 0:00:16.8]} 36... Ba5 {[%clk 0:00:07.5]} 37. Kb3 {[%clk 0:00:16.7]}
37... Kf8 {[%clk 0:00:06.7]} 38. c4 {[%clk 0:00:16.5]} 38... Ke7 {[%clk
0:00:07.4]} 39. c5 {[%clk 0:00:16.4]} 39... Nf5 {[%clk 0:00:07.6]} 40. Kc4
{[%clk 0:00:13.5]} 40... Kf6 {[%clk 0:00:05.8]} 41. Be4 {[%clk 0:00:13.4]} 41...
Ne7 {[%clk 0:00:06]} 42. c6 {[%clk 0:00:11.5]} 42... Bb6 {[%clk 0:00:05.5]} 43.
Ra2 {[%clk 0:00:10.7]} 43... Ra8 {[%clk 0:00:06]} 44. c7 {[%clk 0:00:09.9]}
44... Rc8 {[%clk 0:00:04.2]} 45. a5 {[%clk 0:00:10.3]} 45... Bxc7 {[%clk
0:00:03.7]} 46. Kb3 {[%clk 0:00:08]} 46... Rb8 {[%clk 0:00:03.2]} 47. b6 {[%clk
0:00:07.5]} 47... Bxb6 {[%clk 0:00:03.9]} 48. axb6 {[%clk 0:00:08]} 48... Rxb6+
{[%clk 0:00:04.6]} 49. Kc4 {[%clk 0:00:08.7]} 49... Rd6 {[%clk 0:00:04.3]} 50.
Ra7 {[%clk 0:00:08.1]} 50... Nd5 {[%clk 0:00:04.2]} 51. Ra2 {[%clk 0:00:06.9]}
51... Ne3+ {[%clk 0:00:04]} 52. Kc3 {[%clk 0:00:05.7]} 52... Nd5+ {[%clk
0:00:03.9]} 53. Kb3 {[%clk 0:00:04.3]} 53... Nf4 {[%clk 0:00:03.7]} 54. Rf2
{[%clk 0:00:04.2]} 54... Nd5 {[%clk 0:00:03.9]} 55. Bb1 {[%clk 0:00:04.1]} 55...
Rb6+ {[%clk 0:00:04.4]} 56. Kc2 {[%clk 0:00:04.4]} 56... Nb4+ {[%clk 0:00:04.2]}
57. Kc1 {[%clk 0:00:04.6]} 57... Nd5 {[%clk 0:00:04.2]} 58. Be4 {[%clk
0:00:04.5]} 58... Kg5 {[%clk 0:00:04.4]} 59. Rd2 {[%clk 0:00:03.2]} 59... Rd6
{[%clk 0:00:04.5]} 60. Ra2 {[%clk 0:00:02.8]} 60... Kf4 {[%clk 0:00:04.4]} 61.
Bxd5 {[%clk 0:00:01.6]} 61... Rxd5 {[%clk 0:00:04.3]} 62. Ra7 {[%clk 0:00:02.5]}
62... Rf5 {[%clk 0:00:03.9]} 63. Kd2 {[%clk 0:00:02.2]} 63... Kg3 {[%clk
0:00:04.4]} 64. Ke3 {[%clk 0:00:02.6]} 64... Kxg2 {[%clk 0:00:04.5]} 65. f4
{[%clk 0:00:03.5]} 65... Kg3 {[%clk 0:00:04.8]} 66. Ra3 {[%clk 0:00:03]} 66...
h4 {[%clk 0:00:04]} 67. Ke4+ {[%clk 0:00:02.9]} 67... Kg4 {[%clk 0:00:04]} 68.
Rf3 {[%clk 0:00:03.8]} 68... g5 {[%clk 0:00:03.2]} 69. Rf1 {[%clk 0:00:04.7]}
69... Rxf4+ {[%clk 0:00:03.4]} 70. Rxf4+ {[%clk 0:00:05.3]} 70... gxf4 {[%clk
0:00:04.3]} 0-1

[Event "Early-Titled-Tuesday-Blitz-October-10-2023"]
[Site "Chess.com"]
[Date "2023.10.10"]
[Round "7"]
[White "Iball95"]
[Black "Duhless"]
[Result "1-0"]
[WhiteElo "2812"]
[BlackElo "2931"]
[TimeControl "180+1"]
[EndTime "9:17:14 PDT"]
[Termination "Iball95 won on time"]

1. e4 {[%clk 0:03:00]} 1... e5 {[%clk 0:02:57.6]} 2. Nf3 {[%clk 0:03:00.8]} 2...
Nc6 {[%clk 0:02:56.7]} 3. Nc3 {[%clk 0:03:01.4]} 3... Nf6 {[%clk 0:02:56.4]} 4.
Bb5 {[%clk 0:03:02.3]} 4... Bc5 {[%clk 0:02:55.1]} 5. O-O {[%clk 0:03:01.3]}
5... O-O {[%clk 0:02:47.6]} 6. Nxe5 {[%clk 0:03:01.4]} 6... Nxe5 {[%clk
0:02:45.9]} 7. d4 {[%clk 0:03:02]} 7... Bd6 {[%clk 0:02:46.6]} 8. f4 {[%clk
0:03:02]} 8... Nc6 {[%clk 0:02:46.5]} 9. e5 {[%clk 0:03:01.6]} 9... Be7 {[%clk
0:02:46.7]} 10. d5 {[%clk 0:02:49.5]} 10... Nb4 {[%clk 0:02:42]} 11. exf6 {[%clk
0:02:45.6]} 11... Bxf6 {[%clk 0:02:42.9]} 12. a3 {[%clk 0:02:39.3]} 12... c6
{[%clk 0:02:42.2]} 13. axb4 {[%clk 0:02:30]} 13... cxb5 {[%clk 0:02:41.5]} 14.
Be3 {[%clk 0:02:29.4]} 14... Bxc3 {[%clk 0:02:32.8]} 15. bxc3 {[%clk 0:02:30.3]}
15... d6 {[%clk 0:02:28.4]} 16. Rxa7 {[%clk 0:02:18.5]} 16... Rxa7 {[%clk
0:02:26.9]} 17. Bxa7 {[%clk 0:02:18.3]} 17... Bf5 {[%clk 0:02:24.6]} 18. Re1
{[%clk 0:02:09.9]} 18... Re8 {[%clk 0:02:02.9]} 19. Bd4 {[%clk 0:01:59.9]} 19...
h5 {[%clk 0:01:45.2]} 20. h3 {[%clk 0:01:55.4]} 20... Bg6 {[%clk 0:01:11.3]} 21.
Re2 {[%clk 0:01:51.1]} 21... Qd7 {[%clk 0:01:06.5]} 22. Kh2 {[%clk 0:01:45.6]}
22... Rxe2 {[%clk 0:01:01.3]} 23. Qxe2 {[%clk 0:01:46.5]} 23... Qf5 {[%clk
0:01:01.6]} 24. Qf2 {[%clk 0:01:05.6]} 24... Qxd5 {[%clk 0:00:58.8]} 25. Qg3
{[%clk 0:00:51.4]} 25... Kh7 {[%clk 0:00:46.1]} 26. Qg5 {[%clk 0:00:49.2]} 26...
Qe4 {[%clk 0:00:42.8]} 27. Kg1 {[%clk 0:00:45.2]} 27... Qxc2 {[%clk 0:00:26.8]}
28. Qxb5 {[%clk 0:00:42.1]} 28... Qe4 {[%clk 0:00:19.9]} 29. Qg5 {[%clk
0:00:40.9]} 29... f6 {[%clk 0:00:19.8]} 30. Qg3 {[%clk 0:00:41.3]} 30... Be8
{[%clk 0:00:17.6]} 31. Qe3 {[%clk 0:00:40.4]} 31... Qb1+ {[%clk 0:00:16.2]} 32.
Kh2 {[%clk 0:00:40.8]} 32... Bc6 {[%clk 0:00:16.9]} 33. Qf2 {[%clk 0:00:40.6]}
33... Qe4 {[%clk 0:00:16.3]} 34. Qg3 {[%clk 0:00:41.1]} 34... b5 {[%clk
0:00:13.2]} 35. Qf2 {[%clk 0:00:41.1]} 35... Kg8 {[%clk 0:00:13.1]} 36. Qg3
{[%clk 0:00:42]} 36... Kf7 {[%clk 0:00:13.4]} 37. Qf2 {[%clk 0:00:42.3]} 37...
h4 {[%clk 0:00:12.6]} 38. Kg1 {[%clk 0:00:38.8]} 38... Kg6 {[%clk 0:00:12]} 39.
f5+ {[%clk 0:00:29.7]} 39... Kf7 {[%clk 0:00:09.7]} 40. Kh2 {[%clk 0:00:26.9]}
40... Bd7 {[%clk 0:00:09.7]} 41. Qf1 {[%clk 0:00:20.9]} 41... Bxf5 {[%clk
0:00:08.3]} 42. Qxb5 {[%clk 0:00:21.5]} 42... Qf4+ {[%clk 0:00:08.1]} 43. Kg1
{[%clk 0:00:21.7]} 43... Be4 {[%clk 0:00:07.2]} 44. Qf1 {[%clk 0:00:19]} 44...
Qg5 {[%clk 0:00:05]} 45. Qe2 {[%clk 0:00:18.2]} 45... Qd5 {[%clk 0:00:04.1]} 46.
b5 {[%clk 0:00:17.7]} 46... g5 {[%clk 0:00:03.9]} 47. b6 {[%clk 0:00:18.1]}
47... Kg6 {[%clk 0:00:04]} 48. Be3 {[%clk 0:00:13.9]} 48... f5 {[%clk
0:00:04.2]} 49. Qd2 {[%clk 0:00:14.4]} 49... Qc6 {[%clk 0:00:04.2]} 50. Bxg5
{[%clk 0:00:14.6]} 50... Qxb6+ {[%clk 0:00:03.8]} 51. Kh2 {[%clk 0:00:14.7]}
51... Qc5 {[%clk 0:00:03.5]} 52. Bxh4 {[%clk 0:00:15.2]} 52... Qe5+ {[%clk
0:00:03.4]} 53. Bg3 {[%clk 0:00:15.4]} 53... Qd5 {[%clk 0:00:04]} 54. Qxd5
{[%clk 0:00:13.1]} 54... Bxd5 {[%clk 0:00:04.3]} 55. Bxd6 {[%clk 0:00:14]} 55...
Kg5 {[%clk 0:00:05]} 56. g3 {[%clk 0:00:14.6]} 56... Kg6 {[%clk 0:00:04.6]} 57.
Kg1 {[%clk 0:00:14.8]} 57... Kf7 {[%clk 0:00:04.3]} 58. Kf2 {[%clk 0:00:15.4]}
58... Ke6 {[%clk 0:00:05]} 59. Bb8 {[%clk 0:00:14.5]} 59... Bc4 {[%clk
0:00:04.2]} 60. Ke3 {[%clk 0:00:14.7]} 60... Bf1 {[%clk 0:00:04]} 61. h4 {[%clk
0:00:15.1]} 61... Bh3 {[%clk 0:00:04.8]} 62. Kf4 {[%clk 0:00:14.6]} 62... Bg4
{[%clk 0:00:04.1]} 63. Kg5 {[%clk 0:00:14.4]} 63... Bf3 {[%clk 0:00:03]} 64. h5
{[%clk 0:00:14.1]} 64... Be4 {[%clk 0:00:03.6]} 65. h6 {[%clk 0:00:12.8]} 65...
Kf7 {[%clk 0:00:04.3]} 66. Be5 {[%clk 0:00:13.5]} 66... Kg8 {[%clk 0:00:04.1]}
67. c4 {[%clk 0:00:13.2]} 67... Kh7 {[%clk 0:00:04.2]} 68. c5 {[%clk 0:00:14.1]}
68... Kg8 {[%clk 0:00:03.7]} 69. Bd6 {[%clk 0:00:13.3]} 69... Kh7 {[%clk
0:00:03.6]} 70. Bf4 {[%clk 0:00:13.7]} 1-0

[Event "Early-Titled-Tuesday-Blitz-October-10-2023"]
[Site "Chess.com"]
[Date "2023.10.10"]
[Round "7"]
[White "JimDiGrease"]
[Black "Russian_berezka"]
[Result "1-0"]
[WhiteElo "2915"]
[BlackElo "2650"]
[TimeControl "180+1"]
[EndTime "9:17:18 PDT"]
[Termination "JimDiGrease won by checkmate"]

1. d4 {[%clk 0:03:00.9]} 1... Nf6 {[%clk 0:02:59.4]} 2. c4 {[%clk 0:03:01]} 2...
e6 {[%clk 0:03:00]} 3. Bf4 {[%clk 0:03:01.1]} 3... d5 {[%clk 0:02:48.1]} 4. Nc3
{[%clk 0:02:58.2]} 4... Bb4 {[%clk 0:02:37.8]} 5. Qa4+ {[%clk 0:02:57.6]} 5...
Nc6 {[%clk 0:02:37.7]} 6. e3 {[%clk 0:02:58]} 6... O-O {[%clk 0:02:35.6]} 7. Nf3
{[%clk 0:02:58.5]} 7... dxc4 {[%clk 0:02:22.3]} 8. Bxc4 {[%clk 0:02:59.4]} 8...
a6 {[%clk 0:02:22.1]} 9. O-O {[%clk 0:02:27.3]} 9... Bd6 {[%clk 0:02:20.4]} 10.
Bg5 {[%clk 0:02:13.4]} 10... h6 {[%clk 0:02:18.9]} 11. Bh4 {[%clk 0:02:09.9]}
11... Rb8 {[%clk 0:02:00.2]} 12. Qc2 {[%clk 0:02:01.4]} 12... b5 {[%clk
0:01:59.6]} 13. Be2 {[%clk 0:01:56.2]} 13... Nb4 {[%clk 0:01:56.1]} 14. Qb3
{[%clk 0:01:36.2]} 14... Bb7 {[%clk 0:01:52.8]} 15. Rfd1 {[%clk 0:01:30.9]}
15... Nbd5 {[%clk 0:01:33.5]} 16. Rac1 {[%clk 0:01:21.4]} 16... Nxc3 {[%clk
0:01:30.9]} 17. bxc3 {[%clk 0:01:11.6]} 17... Bd5 {[%clk 0:01:27.5]} 18. Qc2
{[%clk 0:01:08.9]} 18... g5 {[%clk 0:01:17.6]} 19. Bg3 {[%clk 0:01:08]} 19...
Be4 {[%clk 0:01:14.4]} 20. Qb2 {[%clk 0:01:00.8]} 20... Qe7 {[%clk 0:01:14]} 21.
Ne5 {[%clk 0:00:58.7]} 21... Ba3 {[%clk 0:01:09.5]} 22. Qd2 {[%clk 0:00:45.3]}
22... Bxc1 {[%clk 0:01:07.3]} 23. Qxc1 {[%clk 0:00:45.8]} 23... Nd7 {[%clk
0:00:50.1]} 24. f3 {[%clk 0:00:40.4]} 24... Bh7 {[%clk 0:00:39]} 25. Nc6 {[%clk
0:00:39.3]} 25... Qf6 {[%clk 0:00:35]} 26. Nxb8 {[%clk 0:00:38.9]} 26... Rxb8
{[%clk 0:00:34.6]} 27. Bxc7 {[%clk 0:00:39.1]} 27... Rc8 {[%clk 0:00:34.9]} 28.
Bg3 {[%clk 0:00:39.5]} 28... Nb6 {[%clk 0:00:33.8]} 29. e4 {[%clk 0:00:37.8]}
29... Na4 {[%clk 0:00:28.9]} 30. Be5 {[%clk 0:00:29]} 30... Qd8 {[%clk
0:00:25.6]} 31. d5 {[%clk 0:00:23.9]} 31... Qb6+ {[%clk 0:00:11.5]} 32. Bd4
{[%clk 0:00:22.9]} 32... Qc7 {[%clk 0:00:08.3]} 33. dxe6 {[%clk 0:00:18.7]}
33... fxe6 {[%clk 0:00:09.2]} 34. Qa3 {[%clk 0:00:17.1]} 34... Bg6 {[%clk
0:00:07.6]} 35. c4 {[%clk 0:00:13.6]} 35... g4 {[%clk 0:00:06.7]} 36. cxb5
{[%clk 0:00:12.8]} 36... Qc2 {[%clk 0:00:05.7]} 37. Qd3 {[%clk 0:00:08]} 37...
axb5 {[%clk 0:00:04.6]} 38. Qxc2 {[%clk 0:00:05.2]} 38... Rxc2 {[%clk
0:00:05.5]} 39. Bxb5 {[%clk 0:00:05.9]} 39... Rxa2 {[%clk 0:00:05.9]} 40. Bc4
{[%clk 0:00:05.9]} 40... Rc2 {[%clk 0:00:05.7]} 41. Bxe6+ {[%clk 0:00:06.3]}
41... Kf8 {[%clk 0:00:06.3]} 42. Bxg4 {[%clk 0:00:07.2]} 42... Nc3 {[%clk
0:00:04.2]} 43. Bxc3 {[%clk 0:00:07.2]} 43... Rxc3 {[%clk 0:00:05.1]} 44. Rd2
{[%clk 0:00:07.5]} 44... Bf7 {[%clk 0:00:04.6]} 45. Kf2 {[%clk 0:00:07]} 45...
h5 {[%clk 0:00:05.4]} 46. Bf5 {[%clk 0:00:07.5]} 46... Kg7 {[%clk 0:00:05.6]}
47. Kg3 {[%clk 0:00:07.7]} 47... Kf6 {[%clk 0:00:05.3]} 48. Rd6+ {[%clk
0:00:07.8]} 48... Ke7 {[%clk 0:00:04.4]} 49. Rb6 {[%clk 0:00:06.8]} 49... Rc2
{[%clk 0:00:04.3]} 50. h4 {[%clk 0:00:06.6]} 50... Rc1 {[%clk 0:00:04]} 51. Bg6
{[%clk 0:00:06.9]} 51... Kf8 {[%clk 0:00:02.8]} 52. Bxf7 {[%clk 0:00:07.1]}
52... Kxf7 {[%clk 0:00:03.2]} 53. Rb5 {[%clk 0:00:05.8]} 53... Kg6 {[%clk
0:00:03.2]} 54. Rg5+ {[%clk 0:00:06.7]} 54... Kh6 {[%clk 0:00:03.6]} 55. Kf4
{[%clk 0:00:07.6]} 55... Rc8 {[%clk 0:00:02.9]} 56. g4 {[%clk 0:00:07.5]} 56...
Rf8+ {[%clk 0:00:03.1]} 57. Rf5 {[%clk 0:00:06.5]} 57... Re8 {[%clk 0:00:02.2]}
58. Rxh5+ {[%clk 0:00:07]} 58... Kg6 {[%clk 0:00:03.1]} 59. Rg5+ {[%clk
0:00:07.9]} 59... Kh6 {[%clk 0:00:03.6]} 60. Rf5 {[%clk 0:00:08.8]} 60... Kg6
{[%clk 0:00:03.6]} 61. h5+ {[%clk 0:00:09.7]} 61... Kh6 {[%clk 0:00:04.2]} 62.
Rf6+ {[%clk 0:00:10]} 62... Kg7 {[%clk 0:00:04.7]} 63. Kf5 {[%clk 0:00:10.7]}
63... Ra8 {[%clk 0:00:04.4]} 64. h6+ {[%clk 0:00:11.2]} 64... Kh7 {[%clk
0:00:04.6]} 65. g5 {[%clk 0:00:12.1]} 65... Ra5+ {[%clk 0:00:04.8]} 66. e5
{[%clk 0:00:12.5]} 66... Ra3 {[%clk 0:00:05.3]} 67. f4 {[%clk 0:00:12.9]} 67...
Ra7 {[%clk 0:00:05]} 68. e6 {[%clk 0:00:11.7]} 68... Ra5+ {[%clk 0:00:05]} 69.
Kg4 {[%clk 0:00:12.1]} 69... Ra4 {[%clk 0:00:05]} 70. Rf7+ {[%clk 0:00:12.3]}
70... Kh8 {[%clk 0:00:05.5]} 71. e7 {[%clk 0:00:12.1]} 71... Ra8 {[%clk
0:00:04.1]} 72. Kh5 {[%clk 0:00:11.9]} 72... Rg8 {[%clk 0:00:03.3]} 73. Rf8
{[%clk 0:00:10.7]} 73... Kh7 {[%clk 0:00:02.4]} 74. Rxg8 {[%clk 0:00:11.2]}
74... Kxg8 {[%clk 0:00:02.6]} 75. e8=Q+ {[%clk 0:00:11.9]} 75... Kh7 {[%clk
0:00:03.5]} 76. Qg6+ {[%clk 0:00:12.4]} 76... Kh8 {[%clk 0:00:03.1]} 77. Qg7#
{[%clk 0:00:13.3]} 1-0